bitfinex-derivatives/quotes_ETHF0:USTF0_20250629
["timestamp","ask_amount","ask_price","bid_price","bid_amount"]
[1751201451112,1.96841259,2452.2,2452.1,1.49465]
[1751201451316,1.96841259,2452.2,2452.1,2.95715]
[1751201452414,1.96841259,2452.2,2452.1,2.1418]
[1751201454708,1.96841259,2452.2,2452.0,4.02316]
[1751201454709,0.81535,2452.1,2452.0,3.2078]
[1751201454907,1.96844259,2452.1,2452.0,3.2078]
[1751201455115,2.70284259,2452.1,2452.0,3.2078]
[1751201457014,0.81542,2451.9,2451.8,0.81545]
[1751201457210,0.81542,2451.9,2451.8,3.2078]
[1751201457414,0.81552,2451.6,2451.5,2.1777]
[1751201457816,0.81552,2451.6,2451.5,2.8887]
[1751201458116,0.81551,2451.7,2451.5,3.70424]
[1751201458921,0.81552,2451.6,2451.5,2.8887]
[1751201459526,0.81552,2451.6,2451.5,3.70425]
[1751201460626,0.81549,2451.7,2451.5,3.70425]
[1751201460822,0.81549,2451.7,2451.6,2.24622]
[1751201461021,1.15269497,2451.7,2451.6,2.24622]
[1751201462024,0.81539,2452.0,2451.9,0.81542]
[1751201462219,1.96772871,2452.0,2451.9,0.81542]
[1751201463121,1.96772871,2452.0,2451.9,1.3366]
[1751201464625,0.81542,2451.9,2451.8,0.7305]
[1751201465226,1.96822124,2451.9,2451.8,0.7305]
[1751201465525,0.81548,2451.7,2451.6,1.3366]
[1751201465722,0.81548,2451.7,2451.6,2.0533]
[1751201467930,0.81548,2451.7,2451.6,0.7167]
[1751201468625,0.81548,2451.7,2451.6,2.0592]
[1751201469018,0.81546,2451.8,2451.7,0.81547]
[1751201469224,0.81546,2451.8,2451.7,2.15797]
[1751201469523,1.96727765,2451.8,2451.7,2.15797]
[1751201470031,1.96726765,2451.8,2451.7,2.15797]
[1751201471533,1.96726765,2451.8,2451.7,1.3425]
[1751201473436,1.96726765,2451.8,2451.7,2.15799]
[1751201474840,1.96726765,2451.8,2451.7,1.3425]
[1751201475533,1.96726765,2451.8,2451.7,2.15799]
[1751201476737,0.81544,2451.9,2451.8,0.81545]
[1751201476937,1.96737118,2451.9,2451.8,0.81545]
[1751201477136,1.96737118,2451.9,2451.7,0.81546]
[1751201477137,0.81547,2451.8,2451.7,0.81546]
[1751201480141,0.81545,2451.9,2451.8,0.81543]
[1751201480342,1.96683904,2451.9,2451.8,0.81543]
[1751201485744,0.81545,2451.8,2451.7,4.02326]
[1751201485939,1.96683904,2451.8,2451.7,4.02326]
[1751201486942,1.15138904,2451.8,2451.7,4.02326]
[1751201487347,1.96683904,2451.8,2451.7,4.02326]
[1751201488352,1.15138904,2451.8,2451.7,4.02326]
[1751201491754,1.96683904,2451.8,2451.7,4.02326]
[1751201491954,1.96683904,2451.8,2451.7,0.81546]
[1751201495357,1.15138904,2451.8,2451.7,0.81546]
[1751201497257,1.15138904,2451.8,2451.7,2.22816]
[1751201497655,1.15424476,2451.9,2451.7,4.6205]
[1751201497856,7.15939,2452.0,2451.9,0.81542]
[1751201498060,7.49825866,2452.0,2451.9,0.81542]
[1751201498261,7.49825866,2452.0,2451.9,2.18222]
[1751201500057,1.15425866,2452.0,2451.9,2.18222]
[1751201500454,1.96964866,2452.0,2451.9,2.18222]
[1751201509459,0.81539,2452.0,2451.9,2.18222]
[1751201509864,0.81539,2452.0,2451.9,1.3668]
[1751201510067,1.97148232,2452.0,2451.9,1.3668]
[1751201510774,1.97148232,2452.0,2451.9,2.18222]
[1751201512280,1.97148232,2452.0,2451.9,1.3668]
[1751201516581,1.15609232,2452.0,2451.7,0.81548]
[1751201516882,0.81549,2451.7,2451.6,1.52261]
[1751201517072,1.97158232,2451.7,2451.6,1.52261]
[1751201517580,1.15609232,2451.7,2451.6,1.52261]
[1751201517882,1.15609232,2451.7,2451.6,2.88491]
[1751201518983,1.97158232,2451.7,2451.6,2.88491]
[1751201519575,1.15609232,2451.7,2451.6,2.88491]
[1751201520082,1.97158232,2451.7,2451.6,2.88491]
[1751201520783,1.97158232,2451.7,2451.6,0.7071]
[1751201520985,0.81552,2451.6,2451.5,3.2078]
[1751201521284,1.97161232,2451.6,2451.5,3.2078]
[1751201523785,0.81555,2451.5,2451.4,1.52976]
[1751201523986,0.81555,2451.5,2451.4,6.18646]
[1751201524886,0.81555,2451.5,2451.4,4.6567]
[1751201526591,0.81555,2451.5,2451.4,3.2078]
[1751201529990,1.97075567,2451.5,2451.4,3.2078]
[1751201534395,1.97075567,2451.5,2451.4,4.02338]
[1751201534793,1.97075567,2451.5,2451.4,3.2078]
[1751201535296,1.97075567,2451.5,2451.4,4.6439]
[1751201535792,1.97075567,2451.5,2451.4,3.2078]
[1751201536802,0.81558,2451.4,2451.3,0.715]
[1751201536996,0.81558,2451.4,2451.3,2.95362]
[1751201538294,0.81554,2451.6,2451.5,0.81555]
[1751201538500,0.81552,2451.6,2451.5,0.81555]
[1751201538701,1.15470655,2451.6,2451.5,4.02335]
[1751201538904,0.81545,2451.8,2451.7,0.81546]
[1751201539198,1.15473975,2451.8,2451.7,0.81546]
[1751201539599,1.15473975,2451.8,2451.7,2.26146]
[1751201543906,1.15473975,2451.8,2451.7,5.46926]
[1751201544801,1.15473975,2451.8,2451.7,2.26146]
[1751201545005,1.15473975,2451.8,2451.7,5.46926]
[1751201549509,7.14536,2452.1,2452.0,0.81539]
[1751201549712,8.29959478,2452.1,2452.0,0.81539]
[1751201550598,1.15423478,2452.1,2452.0,2.16889]
[1751201551006,0.81531,2452.3,2452.2,0.81532]
[1751201551204,1.15424115,2452.3,2452.2,0.81532]
[1751201551708,1.96953115,2452.3,2452.2,1.49452]
[1751201553311,0.81528,2452.4,2452.3,0.81527]
[1751201553610,1.96825082,2452.4,2452.3,2.16877]
[1751201557710,0.81528,2452.4,2452.3,2.16877]
[1751201557919,0.81524,2452.5,2452.4,0.81524]
[1751201558209,1.96712786,2452.5,2452.4,0.81524]
[1751201558907,1.15188786,2452.5,2452.4,2.19284]
[1751201559607,1.96710786,2452.5,2452.4,2.19284]
[1751201559912,1.15188786,2452.5,2452.4,2.19284]
[1751201560714,1.96710786,2452.5,2452.4,2.19284]
[1751201562015,1.15188786,2452.5,2452.4,2.19284]
[1751201562910,1.96710786,2452.5,2452.4,2.19284]
[1751201563111,1.15188786,2452.5,2452.4,2.19284]
[1751201564417,1.96710786,2452.5,2452.4,2.19284]
[1751201565524,1.15188786,2452.5,2452.4,2.19284]
[1751201566413,3.919,2452.9,2452.4,2.19284]
[1751201566414,7.0322,2452.9,2452.4,2.19284]
[1751201566620,1.15177953,2452.8,2452.7,0.81514]
[1751201567517,1.96690953,2452.8,2452.7,0.81514]
[1751201571228,1.15177953,2452.8,2452.7,2.22164]
[1751201572023,1.96689953,2452.8,2452.7,2.22164]
[1751201572213,1.15177953,2452.8,2452.7,2.22164]
[1751201572610,1.15177953,2452.8,2452.7,2.90484]
[1751201575320,0.81507,2453.0,2452.9,0.81509]
[1751201575521,1.15414072,2453.0,2452.9,0.81509]
[1751201576921,1.96919072,2453.0,2452.9,0.81509]
[1751201578731,0.81512,2452.8,2452.7,0.6832]
[1751201578926,2.63439953,2452.9,2452.8,0.81512]
[1751201581831,1.81928953,2452.9,2452.8,0.81512]
[1751201582332,1.15438953,2452.9,2452.8,0.81512]
[1751201582526,1.15438953,2452.9,2452.8,2.24282]
[1751201583437,1.96947953,2452.9,2452.8,2.24282]
[1751201583933,1.15438953,2452.9,2452.8,2.24282]
[1751201584234,1.96947953,2452.9,2452.8,2.24282]
[1751201584532,1.15438953,2452.9,2452.8,2.24282]
[1751201586532,0.81506,2453.0,2452.9,0.81504]
[1751201586728,1.15465693,2453.1,2452.9,2.1359]
[1751201586930,1.15465693,2453.0,2452.9,1.54239]
[1751201587334,10.34281,2453.2,2453.1,0.81502]
[1751201587635,11.49737231,2453.2,2453.1,0.81502]
[1751201588428,0.81505,2453.1,2453.0,0.81503]
[1751201588628,1.96961231,2453.1,2453.0,0.81503]
[1751201589136,0.81505,2453.0,2452.9,1.54236]
[1751201589436,1.15456231,2453.0,2452.9,1.54236]
[1751201589627,1.96961231,2453.0,2452.9,1.54236]
[1751201590234,0.81505,2453.0,2452.9,1.54236]
[1751201590435,0.81504,2453.1,2453.0,0.81505]
[1751201590639,1.96949695,2453.1,2453.0,0.81505]
[1751201592329,1.15445695,2453.1,2453.0,0.81505]
[1751201594442,1.96947695,2453.1,2453.0,0.81505]
[1751201595740,1.15445695,2453.1,2453.0,0.81505]
[1751201596638,1.96947695,2453.1,2453.0,0.81505]
[1751201597540,1.15445695,2453.1,2453.0,0.81505]
[1751201598742,1.96947695,2453.1,2453.0,0.81505]
[1751201603643,0.81505,2453.0,2452.9,3.9351]
[1751201603843,2.68060695,2453.0,2452.9,3.2078]
[1751201609544,0.81512,2452.8,2452.7,1.3587]
[1751201609741,0.81512,2452.8,2452.7,6.0225]
[1751201609948,1.96957695,2452.8,2452.7,6.83765]
[1751201610344,1.96957695,2452.8,2452.7,6.0225]
[1751201610847,1.96957695,2452.8,2452.7,6.83765]
[1751201612749,1.96957695,2452.8,2452.7,3.62985]
[1751201613048,1.96957695,2452.8,2452.7,6.83765]
[1751201613351,1.15445695,2452.8,2452.7,6.83765]
[1751201618155,1.96957695,2452.8,2452.7,6.83765]
[1751201619960,1.15445695,2452.8,2452.7,6.83765]
[1751201620755,1.96957695,2452.8,2452.7,6.83765]
[1751201621541,1.15445695,2452.8,2452.7,6.83765]
[1751201621854,1.97245096,2453.1,2453.0,0.81502]
[1751201622040,0.81508,2453.0,2452.9,0.81506]
[1751201622246,1.97250096,2453.0,2452.9,0.81506]
[1751201623456,1.15742096,2453.0,2452.9,0.81506]
[1751201623758,1.97247096,2453.0,2452.9,0.81506]
[1751201625459,1.15742096,2453.0,2452.9,0.81506]
[1751201625652,1.97247096,2453.0,2452.9,0.81506]
[1751201627051,1.15742096,2453.0,2452.9,0.81506]
[1751201628260,0.81495,2453.3,2453.2,0.81495]
[1751201628458,1.98928925,2453.3,2453.2,0.81495]
[1751201630562,0.81499,2453.2,2453.1,1.49]
[1751201630763,1.98932925,2453.2,2453.1,1.49]
[1751201631664,1.17433925,2453.2,2453.1,1.49]
[1751201631857,0.81493,2453.4,2453.3,0.81495]
[1751201632055,1.98869013,2453.4,2453.3,0.81495]
[1751201632355,0.81497,2453.3,2453.2,0.81497]
[1751201632555,1.98873013,2453.3,2453.2,0.81497]
[1751201634459,1.17376013,2453.3,2453.2,0.81497]
[1751201636267,0.81495,2453.4,2453.3,0.81495]
[1751201636458,0.81497,2453.3,2453.2,0.81496]
[1751201636859,0.81494,2453.4,2453.3,0.81493]
[1751201637061,1.98773055,2453.4,2453.3,0.81493]
[1751201637263,0.81497,2453.3,2453.2,0.81496]
[1751201637461,0.81494,2453.4,2453.3,0.81493]
[1751201637960,1.98743557,2453.4,2453.3,0.81493]
[1751201640167,0.81495,2453.3,2453.2,2.92716]
[1751201642172,0.81494,2453.4,2453.3,0.81493]
[1751201642569,1.98743768,2453.4,2453.3,0.81493]
[1751201643071,0.81499,2453.2,2453.1,1.49]
[1751201643570,0.81499,2453.2,2453.1,2.8481]
[1751201644369,0.81499,2453.2,2453.1,2.1731]
[1751201647277,6.307,2453.6,2453.1,1.3581]
[1751201647471,1.98825614,2453.5,2453.4,0.8149]
[1751201647872,1.17335614,2453.5,2453.4,0.8149]
[1751201648574,1.98824614,2453.5,2453.4,0.8149]
[1751201650077,1.17335614,2453.5,2453.4,0.8149]
[1751201650578,1.98824614,2453.5,2453.4,0.8149]
[1751201650976,0.81492,2453.4,2453.3,2.92243]
[1751201651169,1.98827614,2453.4,2453.3,2.92243]
[1751201651371,1.98827614,2453.4,2453.3,1.51383]
[1751201653374,1.98829614,2453.4,2453.1,1.464]
[1751201653574,0.81494,2453.4,2453.3,0.81495]
[1751201653783,1.98893536,2453.4,2453.3,0.81495]
[1751201654478,1.98891536,2453.4,2453.3,0.81495]
[1751201655177,0.81497,2453.3,2453.2,0.81496]
[1751201655372,1.98898536,2453.3,2453.2,0.81499]
[1751201656169,1.98898536,2453.3,2453.2,4.02279]
[1751201659573,1.17399536,2453.3,2453.2,4.02279]
[1751201661585,0.81491,2453.5,2453.2,3.2078]
[1751201661788,0.81491,2453.5,2453.4,0.81492]
[1751201662085,1.98535084,2453.5,2453.4,0.81492]
[1751201667388,0.81494,2453.4,2453.3,0.81493]
[1751201667591,1.98538084,2453.4,2453.3,0.81493]
[1751201667886,1.17044084,2453.4,2453.3,0.81493]
[1751201668084,1.17044084,2453.4,2453.3,2.87823]
[1751201669278,1.17044084,2453.4,2453.3,3.56593]
[1751201675291,1.98536084,2453.4,2453.3,3.56593]
[1751201675492,1.98536084,2453.4,2453.3,3.56595]
[1751201675984,1.98536084,2453.4,2453.3,2.751]
[1751201676191,0.81495,2453.3,2453.2,4.02276]
[1751201676390,1.98539084,2453.3,2453.2,4.02276]
[1751201677400,1.98539084,2453.3,2453.2,3.2078]
[1751201677690,0.81499,2453.2,2453.1,0.81499]
[1751201677890,1.98543084,2453.2,2453.1,2.27089]
[1751201680495,0.81502,2453.1,2453.0,2.14493]
[1751201680694,1.98546084,2453.1,2453.0,2.14493]
[1751201680889,1.98546084,2453.1,2453.0,3.59933]
[1751201681394,1.17044084,2453.1,2453.0,3.59933]
[1751201681891,1.171161,2453.2,2453.0,3.59935]
[1751201682098,0.81497,2453.3,2453.1,1.3939]
[1751201682301,1.98615075,2453.2,2453.1,2.20892]
[1751201682694,1.17116075,2453.2,2453.1,2.20892]
[1751201689510,0.81491,2453.5,2453.4,0.81492]
[1751201689709,1.98064904,2453.5,2453.4,0.81492]
[1751201690714,1.98064904,2453.5,2453.4,2.20212]
[1751201693316,1.98064904,2453.5,2453.4,1.3872]
[1751201693511,0.81492,2453.4,2453.3,1.52373]
[1751201693712,1.98065904,2453.4,2453.3,1.52373]
[1751201694313,1.98065904,2453.4,2453.3,2.94783]
[1751201694716,1.16573904,2453.4,2453.3,2.94783]
[1751201694914,1.98065904,2453.4,2453.3,2.94783]
[1751201697419,1.16573904,2453.4,2453.3,2.94783]
[1751201699019,1.98065904,2453.4,2453.3,2.94783]
[1751201700320,1.16573904,2453.4,2453.3,2.94783]
[1751201700518,1.98065904,2453.4,2453.3,2.94783]
[1751201705317,1.16573904,2453.4,2453.3,2.94783]
[1751201705914,1.98065904,2453.4,2453.3,2.94783]
[1751201706723,1.16573904,2453.4,2453.3,2.94783]
[1751201719934,7.10481,2453.8,2453.7,0.81482]
[1751201720237,8.26705158,2453.8,2453.7,0.81482]
[1751201720840,8.26705158,2453.8,2453.7,1.51722]
[1751201721450,1.16224158,2453.8,2453.7,2.86472]
[1751201722235,3.25138208,2454.3,2454.2,0.81465]
[1751201722236,0.81464,2454.3,2454.2,0.81465]
[1751201722439,1.16146402,2454.3,2454.2,0.81465]
[1751201722937,11.21839286,2454.7,2454.1,4.0981]
[1751201722938,2.43674208,2454.7,2454.1,4.0981]
[1751201723129,2.43674208,2454.8,2454.5,3.2078]
[1751201723326,3.25122208,2454.8,2454.6,2.87592]
[1751201723534,3.25122208,2454.8,2454.7,1.3475]
[1751201723832,0.81448,2454.8,2454.7,1.3475]
[1751201730646,0.81449,2454.7,2454.6,0.7139]
[1751201730944,7.10249,2454.7,2454.6,0.7139]
[1751201732444,0.81455,2454.5,2454.4,3.2078]
[1751201732845,0.81455,2454.5,2454.4,4.02239]
[1751201734542,0.81455,2454.5,2454.4,3.2078]
[1751201734941,0.81455,2454.5,2454.4,4.6293]
[1751201735345,0.81455,2454.5,2454.4,3.2078]
[1751201735545,0.81462,2454.3,2454.2,0.7035]
[1751201736839,0.81462,2454.3,2454.1,3.2078]
[1751201736840,0.81465,2454.2,2454.1,3.2078]
[1751201738341,0.81465,2454.2,2454.1,4.02249]
[1751201738647,0.81464,2454.3,2454.2,0.81464]
[1751201738846,0.81464,2454.3,2454.2,1.4292]
[1751201739950,0.6667,2454.6,2454.2,1.4292]
[1751201740138,0.6667,2454.6,2454.3,0.81461]
[1751201740139,0.81462,2454.4,2454.3,0.81461]
[1751201742748,0.81462,2454.4,2454.3,4.02241]
[1751201745653,0.81462,2454.4,2454.3,3.2078]
[1751201746153,0.81462,2454.4,2454.3,4.6183]
[1751201749755,0.81462,2454.4,2454.3,5.43292]
[1751201749949,0.81462,2454.4,2454.3,4.6183]
[1751201750456,1.96964374,2454.4,2454.3,5.2984]
[1751201751558,1.96964374,2454.4,2454.3,6.11302]
[1751201753853,1.96964374,2454.4,2454.3,2.90522]
[1751201754262,1.15502374,2454.4,2454.3,2.90522]
[1751201754760,1.15502374,2454.4,2454.3,3.60092]
[1751201756175,1.15502374,2454.4,2454.3,6.80872]
[1751201760277,0.81456,2454.5,2454.4,0.81459]
[1751201760571,0.81456,2454.5,2454.4,2.14489]
[1751201760773,1.97148398,2454.5,2454.4,2.14489]
[1751201766380,1.97148398,2454.5,2454.4,1.3303]
[1751201767284,0.81459,2454.4,2454.3,3.8879]
[1751201768580,0.81459,2454.4,2454.3,4.70251]
[1751201769882,0.81458,2454.5,2454.4,0.81456]
[1751201770182,1.97118427,2454.5,2454.4,2.24866]
[1751201770683,0.81459,2454.4,2454.3,4.70251]
[1751201773492,0.81457,2454.5,2454.4,0.81455]
[1751201773786,1.97122662,2454.5,2454.4,0.81455]
[1751201780396,1.15665662,2454.5,2454.4,0.81455]
[1751201781195,1.15665662,2454.5,2454.4,2.17275]
[1751201781599,1.97120662,2454.5,2454.4,2.17275]
[1751201782096,1.15665662,2454.5,2454.4,2.17275]
[1751201782598,1.97120662,2454.5,2454.4,2.17275]
[1751201785500,1.15665662,2454.5,2454.4,2.17275]
[1751201786200,1.97120662,2454.5,2454.4,2.17275]
[1751201786999,1.15665662,2454.5,2454.4,2.17275]
[1751201787298,1.97120662,2454.5,2454.4,2.17275]
[1751201788500,1.15665662,2454.5,2454.4,2.17275]
[1751201788804,1.97120662,2454.5,2454.4,2.17275]
[1751201788998,1.15665662,2454.5,2454.4,2.17275]
[1751201789396,1.97120662,2454.5,2454.4,2.17275]
[1751201789704,1.97205882,2454.5,2454.4,2.17275]
[1751201792502,1.97205882,2454.5,2454.4,5.38055]
[1751201793104,1.97205882,2454.5,2454.4,2.17275]
[1751201793403,1.97205882,2454.5,2454.4,5.38055]
[1751201793800,1.97205882,2454.5,2454.4,2.17275]
[1751201793998,1.97205882,2454.5,2454.4,5.38055]
[1751201794708,1.15750882,2454.5,2454.4,5.38055]
[1751201795205,1.97205882,2454.5,2454.4,5.38055]
[1751201795702,1.15750882,2454.5,2454.4,5.38055]
[1751201798006,1.15750882,2454.5,2454.4,2.17275]
[1751201798410,1.15750882,2454.5,2454.4,5.38055]
[1751201800611,1.97205882,2454.5,2454.4,5.38055]
[1751201800809,1.97205882,2454.5,2454.4,4.566]
[1751201803911,1.97205882,2454.5,2454.4,5.38059]
[1751201807214,1.15750882,2454.5,2454.4,5.38059]
[1751201808015,1.97205882,2454.5,2454.4,5.38059]
[1751201808614,1.15750882,2454.5,2454.4,5.38059]
[1751201808810,1.97205882,2454.5,2454.4,5.38059]
[1751201809215,1.97205882,2454.5,2454.4,2.17279]
[1751201816911,1.15750882,2454.5,2454.4,2.17279]
[1751201819825,1.97205882,2454.5,2454.4,2.17279]
[1751201820624,1.15750882,2454.5,2454.4,2.17279]
[1751201821323,1.97205882,2454.5,2454.4,2.17279]
[1751201822721,1.15750882,2454.5,2454.4,2.17279]
[1751201825327,1.15750882,2454.5,2454.4,5.38059]
[1751201831028,1.15750882,2454.5,2454.4,2.17279]
[1751201831330,1.15750882,2454.5,2454.4,5.38059]
[1751201831932,1.15750882,2454.5,2454.4,2.17279]
[1751201832134,1.15750882,2454.5,2454.4,5.38059]
[1751201844837,7.08348,2454.8,2454.7,0.81449]
[1751201845044,8.22976229,2454.8,2454.7,0.81449]
[1751201847546,0.81449,2454.7,2454.6,1.4776]
[1751201847739,1.96077229,2454.7,2454.6,1.4776]
[1751201848036,1.14628229,2454.7,2454.6,1.4776]
[1751201848244,1.96077229,2454.7,2454.6,1.4776]
[1751201848633,1.14628229,2454.7,2454.6,1.4776]
[1751201849644,1.14628229,2454.7,2454.6,2.815]
[1751201864249,1.14628229,2454.7,2454.6,6.0228]
[1751201864856,1.96077229,2454.7,2454.6,3.8709]
[1751201865058,0.81454,2454.6,2454.4,0.81456]
[1751201865358,0.81454,2454.6,2454.5,0.81455]
[1751201865751,1.95544984,2454.6,2454.5,0.81455]
[1751201876759,0.81458,2454.5,2454.4,0.81457]
[1751201876958,0.81458,2454.5,2454.4,2.24357]
[1751201880164,0.81455,2454.6,2454.5,0.81453]
[1751201880655,1.95539165,2454.6,2454.5,0.81453]
[1751201881362,1.14084165,2454.6,2454.5,0.81453]
[1751201884064,6.264,2454.8,2454.7,0.81449]
[1751201884266,7.40479548,2454.8,2454.7,0.81449]
[1751201884660,7.40479548,2454.8,2454.7,2.15819]
[1751201885057,8.21925548,2454.8,2454.7,2.15819]
[1751201885560,7.40479548,2454.8,2454.7,2.15819]
[1751201885766,8.21924548,2454.8,2454.7,2.15819]
[1751201886569,7.40479548,2454.8,2454.7,2.15819]
[1751201888161,1.14079548,2454.8,2454.7,2.15819]
[1751201890170,1.95524548,2454.8,2454.7,2.15819]
[1751201890380,1.14079548,2454.8,2454.7,2.15819]
[1751201895778,1.95524548,2454.8,2454.7,2.15819]
[1751201896081,1.14079548,2454.8,2454.7,2.15819]
[1751201898485,1.95525548,2454.8,2454.7,2.15819]
[1751201900587,1.14079548,2454.8,2454.7,2.15819]
[1751201906495,1.95524548,2454.8,2454.7,2.15819]
[1751201906794,1.14079548,2454.8,2454.7,2.15819]
[1751201907296,1.95524548,2454.8,2454.7,2.15819]
[1751201907795,1.14079548,2454.8,2454.7,2.15819]
[1751201908697,1.95524548,2454.8,2454.7,2.15819]
[1751201908995,1.95524548,2454.8,2454.7,1.3437]
[1751201909193,1.95524548,2454.8,2454.7,2.15819]
[1751201909694,1.14079548,2454.8,2454.7,2.15819]
[1751201910500,1.95525548,2454.8,2454.7,2.15819]
[1751201910901,1.14079548,2454.8,2454.7,2.15819]
[1751201911201,1.95525548,2454.8,2454.7,2.15819]
[1751201911502,1.14079548,2454.8,2454.7,0.81449]
[1751201912503,1.95525548,2454.8,2454.7,0.81449]
[1751201913007,1.14079548,2454.8,2454.7,0.81449]
[1751201913503,1.14079548,2454.8,2454.7,2.15369]
[1751201916509,1.14079548,2454.8,2454.7,2.85209]
[1751201917302,7.01924208,2455.2,2454.7,2.85209]
[1751201917507,0.8144,2455.0,2454.9,0.81439]
[1751201918907,0.81436,2455.1,2455.0,0.81436]
[1751201919103,7.07336,2455.1,2455.0,0.81436]
[1751201921412,0.81439,2455.0,2454.9,5.3834]
[1751201923806,0.81439,2455.0,2454.9,4.0222]
[1751201924206,0.81439,2455.0,2454.9,3.2078]
[1751201924399,0.81439,2455.0,2454.9,4.02222]
[1751201925408,0.81439,2455.0,2454.9,3.2078]
[1751201926104,0.81442,2454.9,2454.8,1.48983]
[1751201926309,0.81442,2454.9,2454.8,6.11803]
[1751201927010,0.81442,2454.9,2454.8,2.91023]
[1751201927309,0.81442,2454.9,2454.8,6.11803]
[1751201929610,1.95206464,2454.9,2454.8,6.11803]
[1751201932908,1.95206464,2454.9,2454.8,5.3036]
[1751201934208,1.95206464,2454.9,2454.8,6.11805]
[1751201934409,1.95206464,2454.9,2454.8,5.3036]
[1751201934615,1.95206464,2454.9,2454.8,6.11805]
[1751201935509,1.95206464,2454.9,2454.8,2.91025]
[1751201935714,1.95206464,2454.9,2454.8,6.11805]
[1751201939115,1.95206464,2454.9,2454.8,2.91025]
[1751201939318,1.95206464,2454.9,2454.8,6.11805]
[1751201941022,1.95206464,2454.9,2454.8,2.91025]
[1751201941224,1.95206464,2454.9,2454.8,5.3036]
[1751201941722,1.95206464,2454.9,2454.8,6.11806]
[1751201943626,1.95206464,2454.9,2454.8,2.91026]
[1751201943813,1.95206464,2454.9,2454.8,6.11806]
[1751201944723,1.95206464,2454.9,2454.8,2.91026]
[1751201944920,1.95206464,2454.9,2454.8,6.11806]
[1751201945120,1.13764464,2454.9,2454.8,6.11806]
[1751201945725,1.95206464,2454.9,2454.8,6.11806]
[1751201946316,1.13764464,2454.9,2454.8,6.11806]
[1751201952731,0.81433,2455.2,2455.1,0.81436]
[1751201953028,1.94806936,2455.2,2455.1,4.02216]
[1751201953420,1.94806936,2455.2,2455.1,3.2078]
[1751201953733,1.94806936,2455.2,2455.1,4.02216]
[1751201956229,1.94806936,2455.2,2455.1,3.2078]
[1751201965230,1.94806936,2455.2,2455.1,4.6208]
[1751201967639,1.94806936,2455.2,2455.1,5.43516]
[1751201967939,1.94806936,2455.2,2455.1,4.6208]
[1751201968540,1.94806936,2455.2,2455.1,5.43516]
[1751201970336,1.94806936,2455.2,2455.1,4.6208]
[1751201970729,1.94806936,2455.2,2455.1,5.32]
[1751201975744,1.94806936,2455.2,2455.1,2.1122]
[1751201978649,1.94806936,2455.2,2455.1,2.92656]
[1751201979337,1.94806936,2455.2,2455.1,2.1122]
[1751201982049,1.94806936,2455.2,2455.1,2.92656]
[1751201984550,1.94806936,2455.2,2455.1,3.59886]
[1751201989553,1.13373936,2455.2,2455.1,3.59886]
[1751201990253,1.94805936,2455.2,2455.1,3.59886]
[1751201992757,1.13373936,2455.2,2455.1,3.59886]
[1751201993259,1.94805936,2455.2,2455.1,6.80666]
[1751201993450,1.13373936,2455.2,2455.1,6.80666]
[1751201993857,1.94805936,2455.2,2455.1,6.80666]
[1751201994059,1.13373936,2455.2,2455.1,6.80666]
[1751201994457,1.94805936,2455.2,2455.1,6.80666]
[1751201998073,1.13373936,2455.2,2455.1,6.80666]
[1751202000171,1.94805936,2455.2,2455.1,6.80666]
[1751202000469,1.13373936,2455.2,2455.1,6.80666]
[1751202002274,1.94805936,2455.2,2455.1,6.80666]
[1751202007882,1.13373936,2455.2,2455.1,6.80666]
[1751202010684,1.94805936,2455.2,2455.1,6.80666]
[1751202010880,1.13373936,2455.2,2455.1,6.80666]
[1751202016384,1.94805936,2455.2,2455.1,6.80666]
[1751202017690,1.94805936,2455.2,2455.1,5.9923]
[1751202017894,2.43674208,2455.6,2455.1,8.907]
[1751202018187,0.31264134,2455.5,2455.4,0.81426]
[1751202018391,0.31264134,2455.5,2455.4,4.02206]
[1751202018590,9.4498,2456.1,2455.4,4.02206]
[1751202018591,9.7847,2456.1,2455.4,3.2078]
[1751202018793,0.81412,2455.9,2455.7,0.81414]
[1751202019090,0.81409,2455.9,2455.8,2.90612]
[1751202019289,1.015,2456.3,2455.8,2.092]
[1751202019489,0.81404,2456.1,2455.9,1.3864]
[1751202019688,0.6801,2456.3,2456.1,0.81401]
[1751202019991,0.81398,2456.3,2456.2,0.7056]
[1751202020185,7.05598,2456.3,2456.2,2.1642]
[1751202021195,0.81398,2456.3,2456.2,2.1642]
[1751202021398,7.05498,2456.3,2456.2,2.1642]
[1751202021786,0.81398,2456.3,2456.2,2.1642]
[1751202022193,7.05498,2456.3,2456.2,2.1642]
[1751202022392,0.81398,2456.3,2456.2,2.1642]
[1751202022695,7.05498,2456.3,2456.2,2.1642]
[1751202025791,7.05498,2456.3,2456.2,2.97819]
[1751202026192,7.05398,2456.3,2456.2,2.97819]
[1751202026899,7.05398,2456.3,2456.2,2.1642]
[1751202027397,7.05398,2456.3,2456.2,2.97819]
[1751202028595,0.81398,2456.3,2456.2,2.97819]
[1751202028801,7.05398,2456.3,2456.2,2.97819]
[1751202029302,7.05398,2456.3,2456.2,2.1642]
[1751202029500,7.05398,2456.3,2456.2,2.97819]
[1751202030297,7.05398,2456.3,2456.2,2.1642]
[1751202030805,7.05398,2456.3,2456.2,2.97819]
[1751202030999,0.81398,2456.3,2456.2,2.97819]
[1751202031193,7.05398,2456.3,2456.2,2.97819]
[1751202031598,0.81398,2456.3,2456.2,2.97819]
[1751202031804,7.05398,2456.3,2456.2,2.97819]
[1751202032307,0.81398,2456.3,2456.2,2.97819]
[1751202032495,7.05398,2456.3,2456.2,2.97819]
[1751202032806,0.81398,2456.3,2456.2,2.97819]
[1751202033601,7.05398,2456.3,2456.2,2.1642]
[1751202033801,7.05398,2456.3,2456.2,0.7056]
[1751202034612,8.27492,2456.3,2455.8,1.3534]
[1751202034809,8.27492,2456.3,2455.9,0.81408]
[1751202035003,0.81409,2455.9,2455.8,2.8756]
[1751202036301,6.24,2456.2,2455.8,2.0615]
[1751202036505,0.81403,2456.1,2456.0,4.02183]